bitfinex/quotes_ETHUSD_20250904
["timestamp","ask_amount","ask_price","bid_price","bid_amount"]
[1756994110711,0.0994,4382.4,4382.3,1.0]
[1756994110919,0.6941,4382.4,4382.3,5.061]
[1756994111087,0.6941,4382.4,4382.3,4.061]
[1756994111286,1.00313028,4382.4,4381.6,0.9064]
[1756994111486,0.1144,4381.8,4381.4,4.682]
[1756994111684,0.0998,4381.5,4381.4,4.682]
[1756994111910,0.1144,4381.8,4381.4,8.742]
[1756994112126,0.4542,4382.7,4381.8,2.28212206]
[1756994112127,0.1144,4381.9,4381.8,2.28212206]
[1756994112386,0.1144,4382.1,4381.8,6.34214935]
[1756994112587,1.82744757,4383.2,4382.2,2.28192137]
[1756994112588,2.28150059,4383.1,4382.2,2.28192137]
[1756994112882,2.42296881,4383.0,4382.4,1.0]
[1756994113088,0.099,4382.5,4382.4,1.0]
[1756994113400,0.2134,4382.5,4382.4,1.0]
[1756994113599,0.2134,4382.5,4382.4,3.28185469]
[1756994113915,0.2134,4382.5,4382.4,1.0]
[1756994114253,1.82744757,4383.2,4382.8,4.07364643]
[1756994114254,0.1144,4382.9,4382.8,4.07364643]
[1756994114399,0.25984757,4383.2,4383.1,1.0]
[1756994114599,0.25984757,4383.2,4383.1,5.059]
[1756994114830,0.35884757,4383.2,4383.1,5.059]
[1756994115328,0.25984757,4383.2,4383.1,5.059]
[1756994116103,0.35884757,4383.2,4383.1,5.059]
[1756994116705,0.24444757,4383.2,4383.1,5.059]
[1756994117233,0.14544757,4383.2,4383.1,8.13149026]
[1756994117621,0.14544757,4383.2,4383.1,5.85]
[1756994117824,0.14544757,4383.2,4383.1,8.13149026]
[1756994118509,0.14544757,4383.2,4383.1,8.43629026]
[1756994118842,0.24444757,4383.2,4383.1,5.057]
[1756994119347,0.83954757,4383.2,4382.8,0.025]
[1756994119502,0.91863326,4383.1,4383.0,1.0]
[1756994119829,0.5536,4383.1,4383.0,1.0]
[1756994120029,0.2138,4383.1,4382.8,4.081]
[1756994120199,0.0994,4383.1,4383.0,1.0]
[1756994120632,0.2138,4383.1,4383.0,1.0]
[1756994121038,0.2138,4383.1,4382.8,0.025]
[1756994121039,0.213,4383.1,4382.8,0.025]
[1756994121238,0.213,4383.1,4382.9,4.056]
[1756994121239,2.49453041,4383.1,4382.9,4.056]
[1756994121425,0.213,4383.1,4382.9,4.056]
[1756994121631,0.213,4383.1,4383.0,1.0]
[1756994121937,0.1144,4383.1,4383.0,1.0]
[1756994122352,0.14544757,4383.2,4383.0,1.752]
[1756994122539,0.14544757,4383.2,4383.1,7.57569026]
[1756994123044,0.14544757,4383.2,4383.1,7.99489026]
[1756994123403,0.1144,4383.8,4383.7,1.0]
[1756994123610,0.1144,4383.8,4383.7,5.055]
[1756994123838,0.2134,4383.8,4383.7,5.055]
[1756994124006,0.1144,4383.8,4383.7,7.336178]
[1756994124333,0.1144,4384.1,4384.0,1.0]
[1756994124637,0.1144,4384.1,4384.0,8.43182189]
[1756994124839,0.1406,4385.6,4385.0,1.0]
[1756994125053,2.28028221,4385.5,4385.0,1.0]
[1756994125368,0.099,4385.1,4384.7,1.0]
[1756994125645,0.1144,4384.6,4383.9,3.0]
[1756994125817,0.1144,4384.6,4384.0,7.054]
[1756994126210,0.69164,4385.0,4384.1,4.053]
[1756994126405,2.51795769,4385.0,4384.7,1.0]
[1756994126636,0.2134,4384.8,4384.7,1.0]
[1756994126837,0.1144,4384.8,4384.7,1.0]
[1756994127640,0.1144,4384.8,4384.7,8.08565774]
[1756994127956,0.4542,4385.8,4384.7,8.08565774]
[1756994127957,0.1406,4385.3,4385.0,1.0]
[1756994128112,0.2134,4384.8,4384.7,4.052]
[1756994128461,0.2134,4384.8,4384.5,4.052]
[1756994128691,2.37962334,4384.8,4384.5,4.052]
[1756994128843,0.1144,4384.6,4384.5,4.052]
[1756994129048,0.2138,4384.6,4384.5,4.052]
[1756994129364,0.1144,4384.6,4384.5,4.052]
[1756994129533,0.1144,4384.6,4384.5,7.33276177]
[1756994129931,0.1144,4384.6,4384.5,5.052]
[1756994130136,0.1144,4384.8,4384.6,2.28070682]
[1756994130330,0.099,4384.7,4384.6,4.051]
[1756994130578,0.099,4384.7,4384.5,4.051]
[1756994130962,0.099,4384.7,4384.6,1.0]
[1756994131148,0.099,4384.7,4384.5,4.051]
[1756994131535,0.1144,4384.8,4384.7,1.0]
[1756994131830,0.1144,4384.8,4384.0,1.2408]
[1756994131831,0.2249,4384.6,4384.0,0.792]
[1756994132037,2.28080535,4384.5,4384.1,4.05]
[1756994132266,0.6237,4385.3,4384.4,1.0]
[1756994132432,2.28060572,4384.8,4384.7,1.0]
[1756994132634,2.37960572,4384.8,4384.4,4.05]
[1756994132847,0.1144,4384.5,4384.4,4.05]
[1756994133062,0.1144,4384.5,4384.3,1.0]
[1756994133063,0.69127263,4384.5,4384.3,1.0]
[1756994133236,2.97208479,4384.5,4384.1,4.05]
[1756994133441,2.85768479,4384.5,4384.1,4.05]
[1756994133629,0.1144,4384.2,4384.1,1.0]
[1756994133863,2.28107392,4383.9,4383.8,0.025]
[1756994134044,2.38087392,4383.9,4383.8,0.025]
[1756994134235,2.49527392,4383.9,4383.8,0.025]
[1756994134634,3.11897392,4383.9,4383.8,0.025]
[1756994134837,3.67290029,4383.9,4383.8,0.025]
[1756994135137,3.81220029,4383.9,4383.8,0.025]
[1756994135770,6.81220029,4383.9,4383.8,0.025]
[1756994136135,7.10930019,4383.9,4383.8,1e-08]
[1756994136339,6.81220029,4383.9,4383.8,1e-08]
[1756994136536,19.8352178,4383.9,4383.8,1e-08]
[1756994136772,19.53530989,4383.9,4383.8,1e-08]
[1756994136976,20.32730989,4383.9,4383.8,1e-08]
[1756994137132,20.6272178,4383.9,4383.8,1e-08]
[1756994137331,19.53530989,4383.9,4383.8,1e-08]
[1756994137565,23.58430989,4383.9,4383.8,1e-08]
[1756994137762,23.36061275,4383.9,4383.8,1e-08]
[1756994137965,10.86120029,4383.9,4383.8,1e-08]
[1756994138535,11.9531082,4383.9,4383.8,1e-08]
[1756994138839,2.28123003,4383.6,4383.1,1e-08]
[1756994139168,2.39583821,4383.2,4383.1,1e-08]
[1756994139341,9.54403821,4383.2,4383.1,1e-08]
[1756994139535,10.30673821,4383.2,4383.1,1e-08]
[1756994140072,9.44383821,4383.2,4383.1,1e-08]
[1756994140438,26.6627164,4383.2,4383.1,1e-08]
[1756994140683,29.07082437,4383.2,4383.1,1e-08]
[1756994140978,28.93062437,4383.2,4383.1,1e-08]
[1756994141477,29.07082437,4383.2,4383.1,1e-08]
[1756994141845,29.37073228,4383.2,4383.1,1e-08]
[1756994142150,28.93062437,4383.2,4383.1,1e-08]
[1756994142544,7.76274618,4383.2,4383.1,1e-08]
[1756994142744,9.44283821,4383.2,4383.1,1e-08]
[1756994143067,9.54223821,4383.2,4383.1,1e-08]
[1756994143240,26.8018164,4383.2,4383.1,1e-08]
[1756994143635,26.8018164,4383.2,4382.6,0.004]
[1756994143636,2.28149026,4383.1,4382.6,0.004]
[1756994143842,2.28211506,4381.9,4381.8,0.025]
[1756994144080,28.60200894,4381.9,4381.8,0.025]
[1756994144370,11.88093075,4381.9,4381.8,0.025]
[1756994144572,28.37710894,4381.9,4381.8,0.025]
[1756994144971,24.33010894,4381.9,4381.8,0.025]
[1756994145140,28.37710894,4381.9,4381.8,0.025]
[1756994145335,24.62069325,4381.9,4381.8,0.025]
[1756994145742,24.62069325,4381.9,4381.8,0.7697]
[1756994145942,24.62069325,4381.9,4381.8,0.025]
[1756994146169,22.33857819,4381.9,4381.8,0.4738]
[1756994146374,22.33857819,4381.9,4381.8,0.7697]
[1756994146375,5.8416,4381.9,4381.8,0.7697]
[1756994146966,0.1144,4381.9,4381.8,0.7697]
[1756994148349,23.35583325,4381.9,4381.8,0.025]
[1756994148549,0.1144,4381.9,4381.8,0.3209]
[1756994148755,0.1144,4381.9,4381.8,0.7697]
[1756994148756,4.1604,4381.9,4381.8,0.7697]
[1756994149141,6.44251506,4381.9,4381.8,0.7697]
[1756994149351,4.1604,4381.9,4381.8,0.7697]
[1756994149555,4.1604,4381.9,4381.8,0.025]
[1756994149741,7.08676169,4381.9,4381.8,0.025]
[1756994149963,10.31166169,4381.9,4381.8,0.025]
[1756994150167,8.78238003,4381.9,4380.0,0.4488]
[1756994150353,18.89321417,4380.9,4380.0,0.4488]
[1756994150678,4.1604,4380.9,4380.5,1.4488]
[1756994150851,4.1604,4380.9,4380.8,0.3209]
[1756994150852,6.44303598,4380.9,4380.8,0.3209]
[1756994151268,0.1144,4380.9,4380.8,1.7697]
[1756994151572,0.1144,4380.9,4380.8,2.59437]
[1756994152153,0.1144,4380.9,4380.8,1.94667]
[1756994152369,0.1144,4380.9,4380.8,1.7697]
[1756994153676,0.1144,4380.9,4380.8,1.025]
[1756994153867,0.1144,4380.9,4380.8,1.7697]
[1756994154070,4.1594,4380.9,4380.8,1.7697]
[1756994154563,0.1144,4380.9,4380.8,4.05238809]
[1756994154764,0.1144,4380.9,4380.8,1.7697]
[1756994155676,0.1144,4380.9,4380.8,0.025]
[1756994155876,4.4625938,4380.9,4380.8,0.025]
[1756994156278,2.39703598,4380.9,4380.8,0.025]
[1756994156457,6.44203598,4380.9,4380.8,0.025]
[1756994156669,6.66693598,4380.9,4380.8,0.025]
[1756994156884,7.29063598,4380.9,4380.8,0.025]
[1756994157396,7.29063598,4380.9,4379.9,0.4488]
[1756994157397,5.28268809,4380.8,4379.8,0.025]
[1756994157603,3.0,4380.6,4379.9,0.4488]
[1756994157879,6.32677706,4380.7,4380.0,1.0]
[1756994158072,0.1144,4380.1,4380.0,1.0]
[1756994158475,2.39745608,4380.1,4379.8,0.025]
[1756994158888,2.39745608,4380.1,4379.8,0.4738]
[1756994159066,0.1144,4380.1,4379.9,0.4488]
[1756994159261,0.1144,4380.1,4380.0,0.2959]
[1756994159475,0.1144,4380.1,4380.0,0.7447]
[1756994159696,0.1144,4380.1,4380.0,1.7447]
[1756994160999,0.1144,4380.1,4380.0,2.76918566]
[1756994161195,0.1144,4380.1,4380.0,5.05229068]
[1756994161412,0.1144,4380.1,4380.0,8.84429068]
[1756994161565,2.716,4381.3,4381.1,1.0]
[1756994161765,2.716,4381.5,4381.2,0.7683]
[1756994162012,2.716,4381.5,4381.3,0.4648]
[1756994162305,0.1144,4381.3,4381.1,1.0]
[1756994162619,0.1144,4381.3,4381.2,0.3035]
[1756994162904,0.1144,4381.3,4381.2,0.7683]
[1756994163708,0.1144,4381.3,4381.2,3.05077968]
[1756994163906,1.732,4381.8,4381.2,3.05077968]
[1756994163907,0.05,4381.8,4381.7,3.28221922]
[1756994164204,0.05,4381.8,4381.7,4.84251922]
[1756994164408,0.05,4381.8,4381.7,5.46171922]
[1756994164577,0.05,4381.8,4381.7,1.7683]
[1756994164776,0.1394,4381.8,4381.7,1.7683]
[1756994165299,0.1394,4381.8,4381.7,4.05051922]
[1756994166002,0.1394,4381.8,4381.7,1.7683]
[1756994166308,0.1394,4381.8,4381.7,4.05051922]
[1756994166516,0.1394,4381.8,4381.7,4.68381274]
[1756994166808,0.1394,4381.8,4381.7,1.7683]
[1756994166964,0.1394,4381.8,4381.3,3.0]
[1756994167291,0.1394,4381.8,4381.7,3.58571922]
[1756994167706,0.1394,4381.8,4381.7,4.05051922]
[1756994168207,0.025,4381.8,4381.7,5.46171922]
[1756994168405,0.025,4381.8,4381.7,6.24756244]
[1756994168608,0.026,4381.8,4381.7,6.24756244]
[1756994168982,0.026,4381.8,4381.7,10.28856244]
[1756994169378,0.026,4381.8,4381.7,14.97056244]
[1756994169579,0.026,4381.8,4381.7,15.08496244]
[1756994169965,0.026,4381.8,4381.7,15.90051564]
[1756994170200,0.026,4381.8,4381.7,11.04396244]
[1756994170400,0.026,4381.8,4381.7,15.08496244]
[1756994170599,0.026,4381.8,4381.7,15.90252051]
[1756994170805,0.026,4381.8,4381.7,11.04396244]
[1756994171096,0.026,4381.8,4381.7,15.08396244]
[1756994171668,0.0252,4381.8,4381.7,15.08396244]
[1756994171898,0.0252,4381.8,4381.7,14.08396244]
[1756994172267,0.0252,4381.8,4381.7,15.08396244]
[1756994174624,1e-08,4381.8,4381.7,14.96956244]
[1756994174915,1e-08,4381.9,4381.8,6.07416714]
[1756994175216,1e-08,4381.9,4381.8,7.5500166]
[1756994175378,1e-08,4381.9,4381.8,7.8535166]
[1756994175992,1e-08,4381.9,4381.8,7.9679166]
[1756994176900,1e-08,4381.9,4381.8,12.0059166]
[1756994177110,0.025,4382.8,4382.7,4.07369849]
[1756994177111,1e-08,4382.8,4382.7,4.07369849]
[1756994177409,1e-08,4382.8,4382.7,13.19798415]
[1756994177702,1e-08,4382.8,4382.7,14.69988415]
[1756994178978,1e-08,4382.8,4382.7,13.28768415]
[1756994179178,1e-08,4382.8,4382.7,13.26138415]
[1756994179379,1e-08,4382.8,4382.7,14.02968415]
[1756994179976,1e-08,4382.8,4382.7,14.53448415]
[1756994180180,1e-08,4382.8,4382.7,13.07968415]
[1756994180378,1e-08,4382.8,4382.7,6.29618566]
[1756994180610,1e-08,4382.8,4382.7,12.85509849]
[1756994180906,1e-08,4382.8,4382.7,8.81909849]
[1756994181104,1e-08,4382.8,4382.7,12.85509849]
[1756994181311,1e-08,4382.8,4382.7,13.62339849]
[1756994181708,1e-08,4382.8,4382.7,9.6234]
[1756994181876,1e-08,4382.8,4382.7,12.85509849]
[1756994182714,1e-08,4382.8,4382.7,10.5734]
[1756994183015,1e-08,4382.8,4382.7,12.85509849]
[1756994183509,1e-08,4382.8,4382.7,1.0644]
[1756994183510,0.09900001,4382.8,4382.7,1.0644]
[1756994183709,0.09900001,4382.8,4382.1,4.036]
[1756994183710,3.17174644,4382.8,4382.1,4.036]
[1756994183911,2.28175055,4382.6,4382.5,0.95]
[1756994184299,3.17175055,4382.6,4382.5,0.95]
[1756994184493,0.89,4382.6,4382.5,0.95]
[1756994184690,0.7503,4382.6,4382.5,0.95]
[1756994185001,3.17175055,4382.6,4382.5,0.95]
[1756994185203,3.17175055,4382.6,4381.4,1.681]
[1756994185204,2.28191838,4382.3,4381.5,3.0]
[1756994185387,2.28186698,4382.4,4382.2,0.95]
[1756994185713,3.64940773,4382.6,4381.5,2.28231632]
[1756994185714,2.38171299,4382.3,4381.5,2.28231632]
[1756994185890,2.28196604,4382.2,4381.4,3.96336207]
[1756994186091,2.28196604,4382.2,4381.8,0.95]
[1756994186092,2.28211506,4381.9,4381.8,0.95]
[1756994186315,0.7499,4381.9,4381.8,0.95]
[1756994186613,0.7499,4381.9,4381.3,4.035]
[1756994186614,0.6509,4382.5,4382.2,0.95]
[1756994186802,0.0994,4382.3,4382.2,0.95]
[1756994187381,3.03220676,4382.3,4382.2,0.95]
[1756994187584,3.56360806,4382.3,4382.2,0.95]
[1756994187784,0.00100001,4382.8,4382.5,0.95]
[1756994188413,0.099,4382.6,4382.5,0.95]
[1756994188984,0.7499,4382.6,4382.5,0.95]
[1756994189984,0.099,4382.6,4382.5,0.95]
[1756994190713,2.99145055,4382.6,4382.5,0.95]
[1756994191082,0.099,4382.6,4382.5,0.95]
[1756994191289,0.00100001,4382.8,4382.5,1.2496]
[1756994191624,0.00100001,4382.8,4382.7,2.28169849]
[1756994192238,0.00100001,4382.8,4382.6,2.28170666]
[1756994192422,0.00100001,4382.8,4382.7,0.7625]
[1756994192631,0.00100001,4382.8,4382.7,3.04419849]
[1756994192932,0.00100001,4382.8,4382.7,4.46391547]
[1756994193228,0.00100001,4382.8,4382.7,8.78206817]
[1756994193730,0.00100001,4382.8,4382.7,8.89646817]
[1756994195094,0.00100001,4382.8,4382.7,12.92846817]
[1756994197269,0.00020001,4382.8,4382.7,12.92846817]
[1756994199337,0.00020001,4382.8,4382.7,7.49956817]
[1756994199538,0.00020001,4382.8,4382.7,6.31169849]
[1756994199735,0.00020001,4382.8,4382.7,7.26169849]
[1756994199938,0.00020001,4382.8,4382.7,9.31169849]
[1756994200132,0.00020001,4382.8,4382.7,10.26169849]
[1756994200527,0.00020001,4382.8,4382.4,1.681]
[1756994200717,0.22510001,4382.8,4382.7,0.95]
[1756994200920,0.22510001,4382.8,4382.7,4.98]
[1756994201347,0.83580001,4382.8,4382.7,4.98]
[1756994201940,0.83580001,4382.8,4382.7,4.03]
[1756994202528,0.83580001,4382.8,4382.7,4.98]
[1756994203759,0.00020001,4382.8,4382.7,7.26169849]
[1756994204261,0.22510001,4382.8,4382.7,4.98]
[1756994205462,0.22510001,4382.8,4382.7,7.26169849]
[1756994205627,0.00020001,4382.8,4382.7,8.05369849]
[1756994206758,0.22300001,4382.8,4382.7,5.772]
[1756994206962,0.22300001,4382.8,4382.7,8.05369849]
[1756994207333,0.22300001,4382.8,4382.7,5.772]
[1756994207528,0.83370001,4382.8,4382.7,4.03]
[1756994207764,0.83370001,4382.8,4382.7,4.978]
[1756994208061,0.83370001,4382.8,4382.7,4.028]
[1756994208733,0.83370001,4382.8,4382.7,4.978]
[1756994208933,0.00020001,4382.8,4382.7,7.25969849]
[1756994209375,0.00020001,4382.8,4382.7,13.5417484]
[1756994209694,0.00020001,4382.8,4382.7,11.9858484]
[1756994209834,0.00020001,4382.8,4382.7,11.2233484]
[1756994210038,0.00020001,4382.8,4382.7,11.3377484]
[1756994210668,0.00020001,4382.8,4382.7,8.0732484]
[1756994210866,0.00020001,4382.8,4382.7,10.21509849]
[1756994211078,0.00020001,4382.8,4382.7,11.92759849]
[1756994212053,0.00020001,4382.8,4382.7,12.53249849]
[1756994215358,0.00020001,4382.8,4382.7,7.90059849]
[1756994215573,0.00020001,4382.8,4382.7,10.37109849]
[1756994215770,0.00020001,4382.8,4382.7,10.67069849]
[1756994215987,0.00020001,4382.8,4382.7,11.16309849]
[1756994216188,0.00020001,4382.8,4382.7,11.92559849]
[1756994216390,0.00020001,4382.8,4382.7,13.5148384]
[1756994216561,0.00020001,4382.8,4382.7,14.0053384]
[1756994216877,0.00020001,4382.8,4382.7,14.1197384]
[1756994219180,0.00020001,4382.8,4382.7,8.5398384]
[1756994219478,0.001,4383.3,4383.2,2.28143821]
[1756994219682,0.001,4383.3,4383.2,11.29839641]
[1756994219989,0.001,4383.3,4383.2,14.43838203]
[1756994221558,0.001,4383.3,4383.2,13.83348203]
[1756994221757,0.001,4383.3,4383.2,12.88348203]
[1756994221957,0.001,4383.3,4383.2,7.77575816]
[1756994222182,0.001,4383.3,4383.2,11.49915816]
[1756994222385,0.001,4383.3,4383.2,13.18005816]
[1756994222550,0.0002,4383.3,4383.2,12.29115816]
[1756994222755,0.0002,4383.3,4383.2,13.24115816]
[1756994222949,0.0002,4383.3,4383.2,13.54455816]
[1756994223162,0.0002,4383.3,4383.2,8.26815816]
[1756994223381,0.8354,4383.3,4383.2,8.04843821]
[1756994223676,0.8354,4383.3,4383.2,0.95]
[1756994223883,0.8508,4383.3,4383.2,4.972]
[1756994224283,0.8354,4383.3,4383.2,7.25343821]
[1756994224471,0.0002,4383.3,4383.2,11.89073821]
[1756994224787,0.0002,4383.3,4383.2,13.30796437]
[1756994224969,0.0002,4383.3,4383.2,10.96696437]
[1756994225170,0.0002,4383.3,4383.2,14.98896437]
[1756994226154,0.0002,4383.3,4383.2,14.25806437]
[1756994226389,0.0002,4383.3,4383.2,11.89083821]
[1756994226587,0.0992,4383.3,4383.2,11.88983821]
[1756994226793,0.7092,4383.3,4383.2,11.88983821]
[1756994227161,0.7092,4383.3,4383.2,11.77543821]
[1756994227464,0.7092,4383.3,4383.2,11.93343821]
[1756994227653,0.7092,4383.3,4383.2,12.72543821]
[1756994228080,0.7092,4383.3,4383.2,11.93343821]
[1756994228280,0.0002,4383.3,4383.2,12.72543821]
[1756994228468,0.0002,4383.3,4383.2,10.444]
[1756994228678,0.0002,4383.3,4383.2,12.72543821]
[1756994229066,0.0002,4383.3,4383.2,14.96847532]
[1756994230258,0.0002,4383.3,4383.2,10.21657532]
[1756994230579,0.0002,4383.3,4383.2,12.72443821]
[1756994230783,0.0002,4383.3,4383.2,13.45533821]
[1756994231569,0.0002,4383.3,4383.2,8.70443821]
[1756994231770,0.0002,4383.3,4383.2,13.02783821]
[1756994232095,0.0002,4383.3,4383.2,13.45533821]
[1756994232277,0.0002,4383.3,4383.2,15.63706532]
[1756994233065,0.0002,4383.3,4383.2,15.75146532]
[1756994233395,0.0002,4383.3,4383.2,15.63706532]
[1756994233601,0.0002,4383.3,4383.2,15.75146532]
[1756994234168,0.611,4385.3,4384.7,4.02265774]
[1756994234413,0.611,4385.3,4384.7,8.04165774]
[1756994234585,0.611,4385.3,4384.7,11.15605774]
[1756994234980,0.734,4384.8,4384.7,4.968]
[1756994235185,0.025,4384.8,4384.7,11.04065774]
[1756994235968,0.025,4384.8,4384.7,11.77155774]
[1756994236193,0.025,4384.8,4384.7,12.1744961]
[1756994236596,0.025,4384.8,4384.7,11.4435961]
[1756994236974,0.025,4384.8,4384.7,11.04065774]
[1756994237384,0.025,4384.8,4384.7,6.07265774]
[1756994237581,0.025,4384.8,4384.7,11.34305774]
[1756994237796,0.025,4384.8,4384.7,10.82055774]
[1756994237972,0.025,4384.8,4384.7,11.03965774]
[1756994238475,0.025,4384.8,4384.7,13.13156129]
[1756994238915,0.025,4384.8,4384.7,12.40066129]
[1756994239078,0.025,4384.8,4384.7,11.03965774]
[1756994240302,0.025,4384.8,4384.7,10.08965774]
[1756994240697,0.2502,4384.8,4384.7,11.03965774]
[1756994240901,0.025,4384.8,4384.7,11.77055774]
[1756994241208,0.025,4384.8,4384.7,13.30152944]
[1756994241715,0.026,4384.8,4384.7,13.30152944]
[1756994242325,0.026,4384.8,4384.7,13.89812944]
[1756994242511,0.026,4384.8,4384.7,13.30152944]
[1756994242808,0.026,4384.8,4384.7,13.89812944]
[1756994243111,0.026,4384.8,4384.7,13.30152944]
[1756994244013,0.1146,4386.2,4384.7,13.30152944]
[1756994244014,0.61,4387.2,4385.2,0.95]
[1756994244195,0.61,4387.2,4386.8,3.22956597]
[1756994244395,0.61,4387.2,4387.1,0.95]
[1756994244595,0.1136,4387.6,4387.2,0.95]
[1756994244801,0.1136,4387.6,4387.5,0.95]
[1756994245010,17.0904596,4388.5,4387.5,3.2291657]
[1756994245179,0.2641,4387.6,4387.5,0.95]
[1756994245712,0.8767,4387.6,4387.5,0.95]
[1756994246208,0.8767,4387.6,4387.3,0.95]
[1756994246411,0.8767,4387.6,4387.1,4.014]
[1756994246412,0.6126,4387.5,4387.1,4.014]
[1756994246707,0.2615,4387.2,4387.1,4.964]
[1756994246909,0.8715,4387.2,4387.1,4.964]
[1756994247211,0.8715,4387.2,4387.1,7.24341008]
[1756994248020,0.8707,4387.2,4387.1,4.964]
[1756994248319,0.2581,4387.2,4386.8,3.025]
[1756994248613,0.2581,4387.2,4387.1,0.95]
[1756994248818,0.2581,4387.2,4387.1,4.013]
[1756994249112,0.2581,4387.2,4386.8,3.025]
[1756994249415,0.2581,4387.2,4387.1,0.95]
[1756994249781,0.8681,4387.2,4387.1,0.95]
[1756994250409,0.8759,4387.2,4386.9,4.012]
[1756994250612,0.92932157,4387.1,4387.0,0.95]
[1756994250829,1.19272157,4387.1,4386.8,0.025]
[1756994251116,2.279514,4386.9,4386.8,0.025]
[1756994251620,3.159214,4386.9,4386.8,0.025]
[1756994251834,3.146514,4386.9,4386.8,0.025]
[1756994251988,3.13490797,4386.9,4386.8,0.025]
[1756994252918,5.41442197,4386.9,4386.8,0.025]
[1756994253119,5.42712197,4386.9,4386.8,0.025]
[1756994253298,3.13490797,4386.9,4386.8,0.025]
[1756994253487,0.867,4386.9,4386.8,0.025]
[1756994253685,2.27945158,4387.1,4386.8,0.025]
[1756994253919,0.6138,4387.4,4386.8,0.025]
[1756994254129,0.2508,4386.9,4386.8,0.025]
[1756994254486,4.011,4387.7,4386.8,0.025]
[1756994254817,1.24430766,4387.6,4386.9,0.95]
[1756994255018,0.68511374,4388.5,4387.6,0.792]
[1756994255223,0.68511374,4388.5,4388.0,0.95]
[1756994255534,0.099,4388.1,4388.0,0.95]
[1756994255695,0.7128,4388.1,4388.0,0.95]
[1756994255898,0.8781,4388.1,4387.0,0.792]
[1756994256097,0.31569495,4388.0,4387.6,0.95]
[1756994256420,0.31569495,4388.0,4386.5,3.33577721]
[1756994256421,1.09479495,4388.0,4387.3,0.95]
[1756994256630,0.0997,4387.4,4386.5,2.27971288]
[1756994256927,2.27935813,4387.2,4386.5,2.27970248]
[1756994257090,0.6138,4387.1,4386.9,0.95]
[1756994258524,0.1136,4387.0,4386.9,0.95]
[1756994258894,0.1136,4387.0,4386.9,1.7044]
[1756994259098,0.1136,4387.0,4386.9,3.983914]
[1756994259630,0.1136,4387.3,4386.9,1.7044]
[1756994260025,0.2633,4387.0,4386.9,0.95]
[1756994260203,0.6138,4387.2,4386.9,1.742]
[1756994260398,0.1136,4387.3,4386.9,1.742]
[1756994260598,0.1136,4387.3,4386.9,4.02149006]
[1756994260811,0.1136,4387.3,4386.9,1.742]
[1756994261333,0.1136,4387.3,4387.2,3.36335813]
[1756994261543,2.27859415,4388.7,4388.3,0.95]
[1756994261708,0.6138,4388.7,4388.3,0.95]
[1756994262098,0.6138,4388.6,4388.3,0.95]
[1756994262297,0.90302752,4388.6,4388.3,0.95]
[1756994262499,0.28922752,4388.6,4388.3,0.95]
[1756994262708,0.001,4389.0,4388.6,0.95]
[1756994262932,0.001,4389.0,4388.7,2.27855101]
[1756994263310,0.001,4389.0,4388.9,0.95]
[1756994263931,0.1,4389.0,4388.9,0.95]
[1756994264125,0.7138,4389.0,4388.9,0.95]
[1756994264429,1.41390834,4389.0,4388.9,0.95]
[1756994264631,0.70110834,4389.0,4388.9,0.95]
[1756994265198,1.41390834,4389.0,4388.9,0.95]
[1756994265621,0.70110834,4389.0,4388.9,0.95]
[1756994265827,0.001,4389.0,4388.9,4.31247524]
[1756994266032,0.001,4389.0,4388.9,0.95]
[1756994266939,0.001,4389.0,4388.9,3.22847524]
[1756994267126,0.001,4389.0,4388.9,3.98287524]
[1756994267350,0.001,4389.0,4388.9,8.36857524]
[1756994267642,0.001,4389.0,4388.9,10.83287524]
[1756994268007,0.001,4389.0,4388.9,6.82487524]
[1756994269224,0.001,4389.0,4388.7,3.0]
[1756994269413,0.001,4389.0,4388.6,3.792]
[1756994269744,0.001,4389.0,4388.3,2.27873753]
[1756994269935,0.001,4389.0,4387.9,0.5937]
[1756994269936,0.001,4389.0,4388.5,3.0]
[1756994270243,0.6138,4388.9,4388.0,0.4624]
[1756994270443,0.6138,4388.9,4388.0,2.74133333]
[1756994270610,0.6138,4388.9,4388.1,0.792]
[1756994270809,0.6138,4388.9,4388.2,5.2788387]
[1756994271152,0.2633,4388.3,4387.8,1.816]
[1756994271365,0.6138,4388.7,4387.9,2.74137511]
[1756994271662,0.1136,4388.3,4388.2,3.2288387]
[1756994272149,0.9907,4388.3,4387.8,0.025]
[1756994272389,0.6138,4388.2,4387.9,0.95]
[1756994272655,0.1136,4388.0,4387.8,0.025]
[1756994272864,0.6138,4388.9,4388.1,0.95]
[1756994273148,2.27942727,4389.0,4388.1,0.95]
[1756994273149,0.2126,4388.2,4388.1,0.95]
[1756994273445,0.1128,4388.2,4388.1,0.95]
[1756994274520,0.1128,4388.2,4388.0,2.27893786]
[1756994274761,0.1128,4388.2,4388.1,0.95]
[1756994275750,0.1128,4388.2,4387.8,0.975]
[1756994275929,0.1128,4388.2,4388.1,0.95]
[1756994276755,0.001,4389.0,4388.6,0.95]
[1756994276936,0.099,4388.7,4388.6,0.95]
[1756994277131,0.8264,4388.7,4388.6,0.95]
[1756994277352,17.9168596,4388.7,4388.0,0.95]
[1756994277534,17.0904596,4388.0,4387.8,0.025]
[1756994277736,0.1136,4387.9,4387.8,0.025]
[1756994278558,0.9907,4387.9,4387.8,0.025]
[1756994279153,0.1136,4387.9,4387.8,0.025]
[1756994279866,0.2126,4387.9,4387.8,0.025]
[1756994280025,8.12029575,4387.9,4387.8,0.025]